bitfinex/quotes_SOLUSD_20250406
["timestamp","ask_amount","ask_price","bid_price","bid_amount"]
[1743965415973,65.32516725,108.34,108.33,0.0001]
[1743965416854,26.0,108.31,108.3,0.03]
[1743965417039,46.24903368,108.31,108.3,0.03]
[1743965417236,18.933972,108.3,108.29,28.29326016]
[1743965417441,111.57420093,108.3,108.29,6.016e-05]
[1743965417749,26.0,108.27,108.22,0.03]
[1743965417953,0.14216157,108.29,108.22,0.03]
[1743965417954,26.0,108.26,108.22,0.03]
[1743965418260,46.24903368,108.25,108.22,0.03]
[1743965418650,26.0,108.26,108.22,0.03]
[1743965418827,9.2327,108.31,108.24,46.24903368]
[1743965419155,46.24903368,108.31,108.22,0.03]
[1743965419459,46.24903368,108.25,108.22,0.03]
[1743965419649,46.24903368,108.23,108.22,0.03]
[1743965420030,26.42648471,108.23,108.22,0.03]
[1743965420230,137.57420093,108.23,108.22,0.0001]
[1743965420542,118.49806736,108.23,108.2,0.0001]
[1743965420742,26.0,108.18,108.17,38.24132806]
[1743965421047,26.0,108.18,108.17,2.806e-05]
[1743965421352,81.49283368,108.18,108.17,2.806e-05]
[1743965421556,104.88675682,108.18,108.14,113.17304067]
[1743965421765,92.49806736,108.15,108.03,30.3198]
[1743965421967,46.24903368,108.1,108.04,39.2558]
[1743965422261,58.41703368,108.15,108.07,46.24903368]
[1743965422562,19.07613357,108.16,108.05,46.74903368]
[1743965422743,46.24903368,108.15,108.05,46.24903368]
[1743965422944,46.24903368,108.1,108.04,30.0]
[1743965423233,9.2489,108.12,108.04,30.0]
[1743965423478,46.24903368,108.08,108.04,30.0]
[1743965423665,46.24903368,108.07,108.04,30.0]
[1743965423839,26.0,108.09,108.04,30.0]
[1743965424025,46.24903368,108.09,108.03,9.2566]
[1743965424231,46.24903368,108.1,108.0,0.5]
[1743965424455,0.28432314,108.09,108.0,0.5]
[1743965424767,26.0,108.02,108.0,0.5]
[1743965425062,46.24903368,108.01,108.0,0.5]
[1743965425275,55.50743368,108.01,108.0,0.5]
[1743965425758,26.0,107.98,107.94,117.84156976]
[1743965426051,32.6701,107.97,107.86,9.2712]
[1743965426257,26.0,107.97,107.86,32.4493]
[1743965426433,12.168,108.0,107.89,0.5]
[1743965426636,9.2584,108.01,107.88,0.5]
[1743965426845,9.2584,108.01,107.9,0.5]
[1743965427047,18.64964886,108.02,107.9,0.5]
[1743965427048,6.6701,108.03,107.95,26.0]
[1743965427249,23.90855563,108.07,107.97,35.2618]
[1743965427457,23.90855563,108.07,107.98,18.79181043]
[1743965427658,9.2515,108.09,107.99,0.28432314]
[1743965427866,55.50053368,108.09,108.01,19.07613357]
[1743965428055,9.2515,108.09,107.98,19.07613357]
[1743965428364,18.79181043,108.08,107.97,345.92]
[1743965428533,5.81970106,108.01,107.98,18.79181043]
[1743965428742,5.81970106,108.01,108.0,46.53335682]
[1743965429039,13.08193602,108.08,108.0,46.24903368]
[1743965429234,22.33473602,108.08,108.02,46.24903368]
[1743965429537,46.24903368,108.03,107.97,332.53977691]
[1743965429744,46.24903368,107.98,107.9,346.16]
[1743965429945,26.0,107.98,107.91,46.24903368]
[1743965430166,26.0,108.02,107.94,46.24903368]
[1743965430330,0.14216157,107.99,107.9,346.16]
[1743965430534,46.24903368,107.95,107.9,346.16]
[1743965430731,46.24903368,107.96,107.9,346.16]
[1743965431027,26.0,107.93,107.92,0.03]
[1743965431254,26.14216157,107.93,107.92,0.03]
[1743965431444,26.0,107.95,107.92,0.03]
[1743965431644,9.2618,107.97,107.92,0.03]
[1743965431839,9.2575,108.02,107.92,0.03]
[1743965432047,9.2575,108.02,107.95,46.24903368]
[1743965432246,9.2575,108.02,107.93,18.64964886]
[1743965432464,46.24903368,107.97,107.92,346.39]
[1743965432655,26.0,107.97,107.92,0.03]
[1743965432842,101.2,108.09,107.92,0.03]
[1743965432843,23.1328,108.08,107.97,0.14216157]
[1743965433031,74.99498169,108.11,108.02,46.24903368]
[1743965433032,32.3773,108.1,108.02,46.24903368]
[1743965433238,9.2506,108.1,108.01,18.933972]
[1743965433439,46.24903368,108.08,108.01,18.79181043]
[1743965433656,55.49963368,108.1,108.01,0.14216157]
[1743965433943,9.2506,108.1,108.01,0.14216157]
[1743965434138,70.46068169,108.11,108.03,46.24903368]
[1743965434355,70.46068169,108.11,108.02,0.28432314]
[1743965434762,54.46828169,108.11,108.05,0.28432314]
[1743965434964,9.2491,108.12,108.02,0.42648471]
[1743965435147,9.2491,108.12,108.03,18.64964886]
[1743965435462,26.0,108.06,107.98,18.79181043]
[1743965435833,26.0,108.06,107.99,0.14216157]
[1743965436034,26.0,108.06,107.95,129.14903368]
[1743965436035,26.0,108.05,107.91,0.5]
[1743965436237,9.2515,108.09,108.0,46.24903368]
[1743965436474,9.2509,108.1,108.03,46.24903368]
[1743965436643,46.24903368,108.1,108.03,0.28432314]
[1743965436846,9.2489,108.12,108.03,0.28432314]
[1743965437158,9.2489,108.12,108.05,46.24903368]
[1743965437362,26.0,108.11,108.05,0.14216157]
[1743965437537,26.0,108.11,108.06,46.24903368]
[1743965437743,9.2472,108.14,108.06,46.24903368]
[1743965438047,46.24903368,108.11,108.05,0.28432314]
[1743965438241,26.0,108.11,108.06,0.14216157]
[1743965438449,26.0,108.11,108.07,46.24903368]
[1743965438659,26.0,108.11,108.05,65.32516725]
[1743965438855,46.24903368,108.1,108.01,346.42]
[1743965439057,51.44143357,108.14,107.98,0.14216157]
[1743965439058,26.0,108.07,107.98,0.14216157]
[1743965439367,23.124,108.12,108.04,46.24903368]
[1743965439550,9.2472,108.14,108.07,46.24903368]
[1743965439750,9.2472,108.14,108.04,18.933972]
[1743965439945,46.24903368,108.12,108.07,46.24903368]
[1743965440141,46.24903368,108.12,108.05,0.14216157]
[1743965440346,26.0,108.11,108.04,0.14216157]
[1743965440558,46.24903368,108.09,108.0,46.24903368]
[1743965440759,26.0,108.1,108.0,18.933972]
[1743965440972,46.24903368,108.04,107.95,392.70903368]
[1743965441169,26.0,108.02,108.01,46.24903368]
[1743965441389,9.2584,108.01,107.96,46.24903368]
[1743965441546,9.2584,108.01,107.95,346.46]
[1743965441547,46.24903368,108.0,107.95,346.46]
[1743965441875,26.0,107.98,107.92,0.03]
[1743965442079,46.24903368,107.96,107.92,0.03]
[1743965442247,26.0,107.96,107.92,0.03]
[1743965442447,9.2584,108.01,107.92,0.03]
[1743965442752,9.2566,108.03,107.96,0.14216157]
[1743965442962,26.0,108.02,107.96,0.14216157]
[1743965443269,26.0,108.02,107.98,46.24903368]
[1743965443471,26.0,108.02,107.96,0.28432314]
[1743965443775,72.24903368,108.02,107.92,0.03]
[1743965443947,26.0,108.02,107.93,18.933972]
[1743965444149,9.2549,108.05,108.0,46.24903368]
[1743965444358,32.3923,108.05,107.97,0.14216157]
[1743965444552,46.24903368,108.02,107.96,0.14216157]
[1743965444848,78.64133368,108.05,107.96,46.24903368]
[1743965445054,26.0,108.02,107.96,18.79181043]
[1743965445367,35.258,108.02,107.96,18.79181043]
[1743965445567,26.0,108.02,107.99,46.24903368]
[1743965445773,46.24903368,108.0,107.92,0.03]
[1743965446075,35.2576,108.02,107.92,9.43816157]
[1743965446377,35.2576,108.02,107.97,46.24903368]
[1743965446549,0.063,108.05,107.98,0.14216157]
[1743965446885,0.063,108.05,108.03,46.24903368]
[1743965447167,0.063,108.05,107.98,346.62]
[1743965447168,46.31203368,108.05,107.98,346.62]
[1743965447378,55.56713368,108.05,107.99,18.64964886]
[1743965447582,46.24903368,108.04,107.99,64.89868254]
[1743965447747,9.3181,108.05,107.98,346.62]
[1743965448079,55.56713368,108.05,107.98,346.62]
[1743965448278,26.0,108.02,107.92,358.9396]
[1743965448453,46.24903368,107.98,107.92,346.65]
[1743965448781,26.0,108.02,107.94,46.24903368]
[1743965448975,26.0,108.02,107.92,346.65]
[1743965449171,46.24903368,108.01,107.93,18.79181043]
[1743965449366,9.2609,107.98,107.94,46.24903368]
[1743965449582,46.24903368,107.97,107.92,346.65]
[1743965449753,9.2609,107.98,107.92,346.65]
[1743965449952,9.2609,107.98,107.92,392.89903368]
[1743965450154,9.2603,107.99,107.95,46.24903368]
[1743965450357,46.24903368,108.0,107.96,46.24903368]
[1743965450358,9.2595,108.0,107.96,46.24903368]
[1743965450561,55.50853368,108.0,107.92,365.72613357]
[1743965450758,46.24903368,107.97,107.92,346.65]
[1743965451053,46.24903368,107.95,107.92,346.65]
[1743965451261,26.0,107.97,107.92,346.65]
[1743965451480,46.24903368,107.93,107.92,0.03]
[1743965451863,46.39119525,107.93,107.92,0.0001]
[1743965452091,26.0,107.9,107.87,0.03]
[1743965452259,72.24903368,107.88,107.87,0.03]
[1743965452575,72.24903368,107.88,107.86,0.0001]
[1743965452789,72.24903368,107.87,107.86,0.0001]
[1743965453161,25.31601043,107.89,107.81,0.03]
[1743965453374,72.24903368,107.82,107.81,0.03]
[1743965453675,81.52373368,107.82,107.81,0.03]
[1743965453975,26.0,107.78,107.74,1.29594217]
[1743965454180,92.49806736,107.75,107.63,9.2908]
[1743965454361,0.14216157,107.65,107.59,0.99257448]
[1743965454568,46.24903368,107.61,107.59,0.99257448]
[1743965454765,0.14216157,107.67,107.59,0.99257448]
[1743965454953,46.24903368,107.64,107.59,0.99257448]
[1743965455150,26.0,107.62,107.59,0.99257448]
[1743965455478,9.2971,107.56,107.5,16.0]
[1743965455687,26.0,107.62,107.5,25.3021]
[1743965455890,46.24903368,107.6,107.5,418.53113368]
[1743965456181,46.24903368,107.67,107.56,0.5]
[1743965456386,72.24903368,107.62,107.54,0.14216157]
[1743965456553,0.14216157,107.64,107.5,154.95053368]
[1743965456879,19.07613357,107.61,107.52,46.24903368]
[1743965457082,26.0,107.6,107.52,46.24903368]
[1743965457261,26.0,107.62,107.5,48.5578]
[1743965457456,9.2928,107.61,107.5,25.302]
[1743965457761,46.24903368,107.55,107.5,16.0]
[1743965457966,46.24903368,107.53,107.5,16.0]
[1743965458178,0.14216157,107.54,107.5,16.0]
[1743965458486,0.28432314,107.59,107.5,16.0]
[1743965458786,46.24903368,107.53,107.5,16.0]
[1743965458970,46.24903368,107.52,107.5,16.0]
[1743965459284,111.57420093,107.51,107.5,16.0]
[1743965459486,111.57420093,107.51,107.36,77.2]
[1743965459487,0.14216157,107.43,107.29,0.5]
[1743965459652,9.3075,107.44,107.31,0.5]
[1743965459853,46.24903368,107.45,107.35,46.5151283]
[1743965460057,46.53335682,107.45,107.35,0.26609462]
[1743965460275,26.0,107.42,107.27,0.5]
[1743965460553,26.0,107.37,107.29,9.3205]
[1743965460862,0.14216157,107.34,107.23,9.3257]
[1743965461190,46.24903368,107.45,107.31,46.24903368]
[1743965461495,26.0,107.42,107.32,9.3179]
[1743965461782,9.3092,107.42,107.31,46.24903368]
[1743965461985,26.0,107.42,107.34,46.24903368]
[1743965462193,18.79181043,107.45,107.38,46.24903368]
[1743965462364,0.14216157,107.47,107.35,46.24903368]
[1743965462687,47.65978951,107.49,107.42,46.24903368]
[1743965462988,9.2971,107.56,107.48,46.24903368]
[1743965463164,20.0,107.63,107.5,46.24903368]
[1743965463165,23.2292,107.63,107.5,46.24903368]
[1743965463366,46.24903368,107.62,107.5,72.24903368]
[1743965463581,46.24903368,107.65,107.5,9.3023]
[1743965463582,55.53843368,107.65,107.5,9.3023]
[1743965464085,55.53843368,107.65,107.55,46.24903368]
[1743965464285,12.0875,107.66,107.59,46.24903368]
[1743965464478,60.25714679,107.67,107.56,347.84]
[1743965464479,46.24903368,107.67,107.56,347.84]
[1743965464789,0.5,107.68,107.56,347.84]
[1743965465090,46.24903368,107.67,107.56,347.84]
[1743965465258,9.285,107.71,107.64,46.24903368]
[1743965465459,46.24903368,107.7,107.64,46.24903368]
[1743965465688,55.53403368,107.7,107.56,347.84]
[1743965465887,0.14216157,107.71,107.59,18.933972]
[1743965466085,25.24680612,107.76,107.64,0.28432314]
[1743965466086,55.52893368,107.76,107.64,0.28432314]
[1743965466264,55.52893368,107.76,107.62,26.0]
[1743965466265,9.2799,107.76,107.65,347.84]
[1743965466589,46.24903368,107.75,107.65,347.84]
[1743965466784,46.24903368,107.75,107.65,394.08903368]
[1743965466988,46.24903368,107.73,107.65,347.84]
[1743965467290,46.24903368,107.75,107.65,394.08903368]
[1743965467590,46.24903368,107.66,107.59,347.78]
[1743965467786,32.4945,107.71,107.62,46.24903368]
[1743965467985,9.2816,107.74,107.6,46.24903368]
[1743965468189,9.2798,107.76,107.65,46.24903368]
[1743965468387,32.4795,107.76,107.61,0.28432314]
[1743965468589,9.2798,107.76,107.68,46.24903368]
[1743965468790,9.2798,107.76,107.69,46.24903368]
[1743965468977,23.1934,107.79,107.71,46.24903368]
[1743965469173,0.14216157,107.77,107.6,46.24903368]
[1743965469387,26.0,107.72,107.61,19.07613357]
[1743965469588,35.2834,107.72,107.62,9.2912]
[1743965469788,35.2834,107.72,107.64,46.24903368]
[1743965469963,46.24903368,107.69,107.61,18.933972]
[1743965470164,9.2823,107.74,107.67,46.24903368]
[1743965470394,0.14216157,107.78,107.71,46.24903368]
[1743965470591,46.24903368,107.79,107.73,46.24903368]
[1743965470891,46.24903368,107.78,107.71,0.28432314]
[1743965471093,9.2729,107.84,107.77,46.24903368]
[1743965471398,34.03094581,107.86,107.76,18.933972]
[1743965471601,46.24903368,107.83,107.75,46.24903368]
[1743965471900,46.24903368,107.83,107.7,46.24903368]
[1743965471901,0.063,107.77,107.7,46.24903368]
[1743965472267,0.063,107.77,107.76,46.24903368]
[1743965472468,0.063,107.77,107.71,18.933972]
[1743965472694,0.063,107.77,107.76,46.24903368]
[1743965472891,0.063,107.77,107.76,65.32516725]
[1743965473094,0.063,107.83,107.77,19.07613357]
[1743965473304,0.063,107.83,107.79,18.933972]
[1743965473475,0.063,107.83,107.82,46.24903368]
[1743965473795,0.063,107.83,107.78,347.64]
[1743965474294,0.063,107.83,107.8,46.24903368]
[1743965474467,0.063,107.83,107.78,347.64]
[1743965474668,0.063,107.83,107.8,46.24903368]
[1743965474881,69.38952261,107.92,107.82,65.18300568]
[1743965475084,69.38952261,107.92,107.84,46.24903368]
[1743965475396,46.24903368,107.89,107.83,46.24903368]
[1743965475571,60.12332261,107.92,107.84,0.28432314]
[1743965475774,69.38952261,107.92,107.81,9.2755]
[1743965476094,9.2609,107.98,107.89,46.24903368]
[1743965476401,32.4133,107.98,107.87,347.46]
[1743965476579,46.24903368,107.96,107.88,18.933972]
[1743965476780,32.4133,107.98,107.89,46.24903368]
[1743965476991,46.81203368,108.05,107.93,46.24903368]
[1743965477180,46.24903368,107.96,107.88,18.79181043]
[1743965477394,23.1475,108.01,107.91,0.28432314]
[1743965477574,46.24903368,107.94,107.88,18.933972]
[1743965477897,55.50913368,107.99,107.93,46.24903368]
[1743965478098,9.2601,107.99,107.91,46.24903368]
[1743965478276,9.2601,107.99,107.93,0.28432314]
[1743965478470,46.24903368,107.99,107.94,46.24903368]
[1743965478690,0.14216157,108.02,107.88,347.46]
[1743965478871,32.3983,108.03,107.91,19.07613357]
[1743965479195,46.24903368,107.99,107.94,46.24903368]
[1743965479379,26.0,108.0,107.91,18.933972]
[1743965479581,35.2594,108.0,107.94,46.24903368]
[1743965479796,9.2582,108.02,107.95,46.24903368]
[1743965479996,46.24903368,108.01,107.95,46.24903368]
[1743965480205,32.402,108.02,107.93,0.28432314]
[1743965480378,26.0,107.99,107.93,0.28432314]
[1743965480703,26.0,107.99,107.91,18.79181043]
[1743965480905,26.0,107.99,107.91,46.24903368]
[1743965481079,46.24903368,107.93,107.85,55.52103368]
[1743965481279,26.0,107.97,107.84,9.2723]
[1743965481604,9.2644,107.94,107.84,9.2723]
[1743965481786,46.24903368,107.9,107.85,46.24903368]
[1743965481994,26.0,107.97,107.86,0.14216157]
[1743965482297,46.24903368,107.91,107.84,0.14216157]
[1743965482606,26.0,107.92,107.83,356.5736]
[1743965482783,46.24903368,107.9,107.83,347.3]
[1743965482979,26.0,107.92,107.83,347.3]
[1743965482980,26.0,107.92,107.85,46.24903368]
[1743965483188,46.24903368,107.88,107.83,347.3]
[1743965483510,26.0,107.87,107.8,46.24903368]
[1743965483815,9.2652,107.93,107.84,46.24903368]
[1743965483981,9.2635,107.95,107.89,46.24903368]
[1743965484177,46.24903368,107.92,107.87,46.24903368]
[1743965484398,32.4223,107.95,107.88,46.24903368]
[1743965484605,55.51253368,107.95,107.87,0.42648471]
[1743965485107,9.2558,108.04,107.94,46.24903368]
[1743965485312,9.2558,108.04,107.98,46.24903368]
[1743965485605,0.063,108.05,107.99,28.05151043]
[1743965485900,0.063,108.05,108.01,18.79181043]
[1743965486205,46.31203368,108.05,107.99,46.24903368]
[1743965486497,46.31203368,108.05,108.0,0.28432314]
[1743965486498,0.063,108.05,108.0,0.28432314]
[1743965486702,46.24903368,108.04,107.96,18.64964886]
[1743965486895,26.0,108.02,107.94,347.14]
[1743965487094,0.063,108.05,108.01,46.24903368]
[1743965487276,0.063,108.03,107.99,0.28432314]
[1743965487805,0.063,108.03,108.02,46.53335682]
[1743965487989,0.063,108.03,108.0,0.28432314]
[1743965488186,0.063,108.03,107.96,18.79181043]
[1743965488408,0.063,108.03,108.01,46.24903368]
[1743965488580,0.063,108.03,108.02,46.53335682]
[1743965488906,0.063,108.03,107.96,19.07613357]
[1743965489396,46.24903368,108.0,107.95,46.24903368]
[1743965489608,0.063,108.03,107.94,347.14]
[1743965489609,46.24903368,107.98,107.94,347.14]
[1743965489807,26.0,108.02,107.95,46.24903368]
[1743965490113,58.4013,108.02,107.94,347.14]
[1743965490312,35.2575,108.02,107.94,347.14]
[1743965490607,9.3199,108.03,107.97,0.14216157]
[1743965490812,0.063,108.03,107.97,0.42648471]
[1743965491029,32.4616,108.03,107.95,0.14216157]
[1743965491382,46.24903368,108.0,107.94,347.14]
[1743965491581,46.24903368,107.99,107.94,347.14]
[1743965491800,9.2609,107.98,107.94,347.14]
[1743965492191,9.2575,108.02,107.94,393.38903368]
[1743965492386,46.24903368,108.01,107.96,46.24903368]
[1743965492595,9.2575,108.02,107.94,347.14]
[1743965492596,46.24903368,107.99,107.94,347.14]
[1743965492805,32.4013,108.02,107.94,347.14]
[1743965492989,46.24903368,108.01,107.95,46.24903368]
[1743965493284,46.24903368,108.01,107.94,347.14]
[1743965493285,46.24903368,107.99,107.94,347.14]
[1743965493486,46.24903368,107.96,107.87,346.88]
[1743965493712,9.266,107.93,107.87,346.88]
[1743965493885,9.266,107.93,107.85,82.9]
[1743965494088,46.24903368,107.9,107.83,7.54544123]
[1743965494287,32.4291,107.93,107.84,46.24903368]
[1743965494592,9.2647,107.94,107.88,46.24903368]
[1743965494782,9.2647,107.94,107.89,46.24903368]
[1743965495109,46.24903368,107.97,107.92,46.24903368]
[1743965495414,46.24903368,107.98,107.92,46.24903368]
[1743965495591,32.4122,107.99,107.86,19.07613357]
[1743965495909,9.2601,107.99,107.92,46.24903368]
[1743965496096,46.24903368,107.96,107.86,32.4491]
[1743965496285,46.24903368,107.96,107.88,0.14216157]
[1743965496486,46.24903368,107.94,107.89,46.24903368]
[1743965496708,46.24903368,107.93,107.88,46.24903368]
[1743965497009,46.24903368,107.95,107.84,9.2722]
[1743965497189,46.24903368,107.89,107.83,7.54544123]
[1743965497392,19.07613357,107.94,107.84,46.24903368]
[1743965497590,46.24903368,107.91,107.86,46.24903368]
[1743965497796,46.24903368,107.9,107.85,46.24903368]
[1743965497993,55.51683368,107.91,107.86,46.24903368]
[1743965498195,9.2678,107.91,107.83,7.54544123]
[1743965498396,46.24903368,107.9,107.83,7.54544123]
[1743965498588,46.24903368,107.88,107.83,7.54544123]
[1743965498792,32.4352,107.91,107.83,53.79447491]
[1743965498993,9.2644,107.94,107.9,46.24903368]
[1743965499201,9.2644,107.94,107.87,0.28432314]
[1743965499402,9.2609,107.98,107.92,46.24903368]
[1743965499600,9.2609,107.98,107.93,46.24903368]
[1743965499795,32.4116,107.99,107.93,46.24903368]
[1743965500003,46.24903368,107.98,107.93,46.24903368]
[1743965500312,32.4116,107.99,107.93,46.24903368]
[1743965500486,46.24903368,107.95,107.86,19.07613357]
[1743965500687,32.4116,107.99,107.91,46.24903368]
[1743965500889,46.24903368,107.96,107.91,46.24903368]
[1743965501091,46.24903368,107.93,107.88,46.24903368]
[1743965501292,46.24903368,107.97,107.91,46.24903368]
[1743965501499,9.2601,107.99,107.91,18.79181043]
[1743965501805,46.24903368,107.97,107.92,46.24903368]
[1743965502002,9.2601,107.99,107.94,46.24903368]
[1743965502199,55.50913368,107.99,107.91,0.28432314]
[1743965502399,46.24903368,107.97,107.91,0.28432314]
[1743965502610,46.24903368,107.97,107.91,46.24903368]
[1743965502808,46.24903368,107.98,107.91,19.07613357]
[1743965503016,46.24903368,107.94,107.85,46.24903368]
[1743965503322,46.24903368,107.92,107.85,0.14216157]
[1743965503491,26.0,107.96,107.9,46.24903368]
[1743965503698,32.4103,107.99,107.92,46.24903368]
[1743965504036,0.20790185,107.98,107.95,46.24903368]
[1743965504318,0.20790185,107.98,107.94,46.24903368]
[1743965504526,0.20790185,107.98,107.93,46.24903368]
[1743965504706,0.20790185,107.98,107.94,46.24903368]
[1743965505322,0.20790185,107.98,107.97,46.24903368]
[1743965505617,0.20790185,107.98,107.97,111.57420093]
[1743965505800,23.1315,108.08,107.97,111.57420093]
[1743965505801,37.11139236,108.1,107.98,19.07613357]
[1743965505993,37.11139236,108.1,108.03,46.24903368]
[1743965506205,46.24903368,108.09,108.04,46.24903368]
[1743965506401,60.49982456,108.16,108.04,46.24903368]
[1743965506622,59.99982456,108.16,108.06,46.24903368]
[1743965506794,60.14198613,108.16,108.06,46.24903368]
[1743965506998,0.063,108.13,108.07,46.24903368]
[1743965507216,9.313,108.11,108.07,46.24903368]
[1743965507421,0.063,108.11,108.08,46.24903368]
[1743965507621,0.063,108.11,108.05,46.24903368]
[1743965507622,0.063,108.11,108.1,46.24903368]
[1743965507922,0.063,108.11,108.1,120.82480093]
[1743965508108,0.063,108.13,108.11,19.07613357]
[1743965508302,23.0926,108.26,108.13,0.14216157]
[1743965508526,23.0926,108.26,108.17,46.24903368]
[1743965508699,46.24903368,108.25,108.14,0.28432314]
[1743965508902,46.24903368,108.25,108.16,46.24903368]
[1743965509110,46.24903368,108.25,108.14,46.65477619]
[1743965509418,46.24903368,108.19,108.14,46.65477619]
[1743965509625,46.24903368,108.16,108.11,46.24903368]
[1743965509828,46.24903368,108.2,108.1,46.04296763]
[1743965509829,72.24903368,108.2,108.1,46.04296763]
[1743965510033,26.0,108.16,108.09,46.24903368]
[1743965510196,46.24903368,108.12,108.08,59.86019446]
[1743965510401,46.24903368,108.1,108.08,13.61116078]
[1743965510601,26.0,108.12,108.08,13.61116078]
[1743965510832,46.24903368,108.1,108.08,13.61116078]
[1743965511126,46.24903368,108.09,108.08,13.61116078]
[1743965511298,46.24903368,108.09,108.02,46.24903368]
[1743965511503,46.24903368,108.05,108.0,346.64]
[1743965511704,46.24903368,108.1,108.02,46.24903368]
[1743965511933,46.24903368,108.09,108.04,46.24903368]
[1743965512102,32.3743,108.11,108.03,46.24903368]
[1743965512304,78.62333368,108.11,108.05,46.24903368]
[1743965512505,9.2438,108.18,108.09,46.24903368]
[1743965512796,9.2438,108.18,108.07,0.28432314]
[1743965512797,46.24903368,108.14,108.07,0.14216157]
[1743965513098,46.24903368,108.17,108.12,46.24903368]
[1743965513301,46.24903368,108.16,108.09,0.14216157]
[1743965513546,32.3534,108.18,108.07,0.14216157]
[1743965513734,46.24903368,108.15,108.1,46.24903368]
[1743965513904,9.2464,108.15,108.1,46.24903368]
[1743965514228,9.2464,108.15,108.09,0.28432314]
[1743965514424,46.24903368,108.14,108.09,46.24903368]
[1743965514625,9.2464,108.15,108.11,46.24903368]
[1743965515128,9.2457,108.16,108.12,46.24903368]
[1743965515508,55.49283368,108.18,108.13,46.24903368]
[1743965515710,65.83998554,108.19,108.13,46.24903368]
[1743965515928,59.96888554,108.19,108.16,46.24903368]
[1743965516153,9.2404,108.22,108.16,46.24903368]
[1743965516430,9.2404,108.22,108.14,0.28432314]
[1743965516431,46.24903368,108.21,108.14,0.42648471]
[1743965516629,32.3414,108.22,108.16,46.24903368]
[1743965516809,46.24903368,108.21,108.16,46.24903368]
[1743965517005,32.3414,108.22,108.14,46.24903368]
[1743965517205,46.24903368,108.16,108.11,46.24903368]
[1743965517423,46.24903368,108.17,108.12,46.24903368]
[1743965517620,46.24903368,108.16,108.11,46.24903368]
[1743965517824,46.24903368,108.12,108.09,346.48]
[1743965518043,9.2515,108.09,108.05,46.24903368]
[1743965518546,55.50053368,108.09,108.04,46.24903368]
[1743965518852,23.1227,108.12,108.05,46.24903368]
[1743965518853,9.251,108.1,108.05,46.24903368]
[1743965519147,23.1227,108.12,108.05,0.28432314]
[1743965519148,46.24903368,108.12,108.05,0.28432314]
[1743965519346,32.3655,108.14,108.05,0.28432314]
[1743965519649,46.24903368,108.16,108.08,0.28432314]
[1743965519948,46.24903368,108.16,108.11,46.53335682]
[1743965520150,9.2412,108.21,108.11,9.2497]
[1743965520353,46.24903368,108.16,108.11,0.28432314]
[1743965520532,69.35453368,108.2,108.07,0.14216157]
[1743965520847,26.0,108.17,108.11,46.24903368]
[1743965521071,46.24903368,108.15,108.09,0.28432314]
[1743965521343,46.24903368,108.15,108.05,218.34903368]
[1743965521344,46.24903368,108.13,108.05,218.34903368]
[1743965521521,46.24903368,108.1,108.0,172.1]
[1743965521719,26.0,108.12,108.04,46.24903368]
[1743965522147,46.24903368,108.06,107.98,9.2907]
[1743965522326,46.24903368,108.04,107.98,0.03]
[1743965522823,46.24903368,108.04,107.99,46.24903368]
[1743965523031,46.24903368,108.05,107.98,18.82181043]
[1743965523344,46.24903368,108.07,108.02,46.24903368]
[1743965523544,46.24903368,108.1,108.03,46.24903368]
[1743965523723,32.3743,108.11,108.05,46.24903368]
[1743965523923,55.49883368,108.11,108.05,46.24903368]
[1743965524146,46.24903368,108.08,108.0,392.58903368]
[1743965524456,32.3743,108.11,108.02,0.14216157]
[1743965524656,46.24903368,108.08,108.03,46.24903368]
[1743965524833,46.24903368,108.05,108.0,346.34]
[1743965525044,26.0,108.07,108.0,346.34]
[1743965525229,46.24903368,108.02,107.98,0.03]
[1743965525553,26.0,108.07,108.0,46.24903368]
[1743965525727,46.24903368,108.1,108.02,46.24903368]
[1743965525929,32.3743,108.11,108.04,46.24903368]
[1743965526230,116.91188254,108.15,108.03,46.24903368]
[1743965526231,55.50143368,108.08,108.03,46.24903368]
[1743965526552,46.24903368,108.04,107.98,0.03]
[1743965526927,32.3834,108.08,107.99,46.24903368]